Workbook

Sheet Information
A1: These template sheets come with some scores already entered into cells.
A3: These scores act as placeholders and demonstrate what scores are necessary. The only sheets that require any user input is the WISC-IV sheet.
A5: All cells, except those requiring entry, are protected. Use the TAB key to move from input cell to input cell.
A7: ****Be sure to delete any scores that do not pertain to your particular case.****
A9: We (Ron Dumont and John Willis) and The Psychological Corporation, take no responsibility for any errors made while using these templates.
A11: There may be some differences between some of the templates reporting and data in the WISC-IV Manuals.
A13: The Percentiles reported here are simple SS to Percentile lookups. They are based upon the normal curve distribution.
A15: The Composite and FSIQ ranges are based upon a formula (SEE, page 37, WISC-IV Technical and Interpretive Manual).
A17: Critical Values for subtest differences are approximations - because there are so many subtest combinations available, the template uses the rounded average of all possible critical values. Please refer to page 265, WISC-IV Administration and Scoring Manual for actual values for the 10 core subtests
A19: Gf-Gc configurations were adapted from Appendix A, pp. 445 – 453, The Intelligence Test Desk Reference (ITDR): Gf-Gc Cross-Battery Assessment (McGrew & Flanagan, 1998) and Table 8.3, p. 312, The Wechsler Intelligence Scales and Gf-Gc Theory (Flanagan, McGrew & Ortiz, 2000)

Sheet WISC IV
A1: Wechsler Intelligence Scale for Children - Fourth Edition© The Psychological Corporation., 2003. All Rights Reserved
A2: Dumont-Willis WISC-IV Interpretive Worksheet
A3: Use the TAB key to navigate to cells requiring input - Text highlighted in red
C5: Name: | D5: Andre B | G5: Date of Test: | H5: 2003-08-05 | M5: Date Analyzed: | N5: =NOW() -> 2014-02-11T13:48:22.300 | U5: =YEAR(H5) -> 2003 | V5: =MONTH(H5) -> 8 | W5: =DAY(H5) -> 5 | X5: =IF(Y6>Z5,U5-1,U5) -> 2003 | Y5: =IF(Y6>Z5,Z5+12,Z5) -> 7 | Z5: =IF(AA6>W5,V5-1,V5) -> 7 | AA5: =IF(AA6>W5,W5+30,W5) -> 35
G6: Date of Birth: | H6: 1995-05-16 | M6: Age: | N6: =AC7 -> 8 years, 2 months, 19 days | X6: =YEAR(H6) -> 1995 | Y6: =MONTH(H6) -> 5 | AA6: =DAY(H6) -> 16
X7: =X5-X6 -> 8 | Y7: =Y5-Y6 -> 2 | AA7: =AA5-AA6 -> 19 | AC7: =X7&" years, "&Y7&Y8&AA7&AA8 -> 8 years, 2 months, 19 days
N8: =IF(OR(X7<6,X7>16),"The age computed is not supported by the WISC-IV","") ->  | T8: =FIND(" ",D5) -> 6 | U8: =MID(D5,1,T8-1) -> Andre | Y8: =IF(Y7=1," month, "," months, ") -> months, | AA8: =IF(AA7=1," day"," days") -> days
W9: 1 | X9: 2 | Z9: 4 | AA9: 5 | AB9: 6 | AC9: 7 | AD9: 8 | AE9: 9 | AF9: 10 | AG9: 11 | AH9: 12 | AI9: 13
W10: 16 | X10: 18 | Y10: 20 | Z10: 25 | AA10: 30 | AB10: 35 | AC10: 45 | AD10: 55 | AE10: 65 | AF10: 70 | AG10: 75 | AH10: 80 | AI10: 85
D11: SUBTESTS | F11: ss | G11: VCI | H11: PRI | I11: WM | J11: PS | K11: Full Scale | L11: PR | W11: =LOOKUP(N6,W10:AI10,W9:AI9) ->  | X11: age grp
B12: Check the subtests used in the Full Scale IQ calculation (7 required). Core subtests are those with borders | F12: 13 | H12: =IF(F12="","",IF(U12=0,"("&F12&")",F12)) -> 13 | K12: =IF(U12=0,"",IF(F12="","",F12)) -> 13 | L12: =IF(F12="","",LOOKUP(F12,$D$365:$W$365,$D$366:$W$366)) -> 84 | N12: =IF(W21>3,"You have selected too many subtests for calculation of a Verbal Comprehension Scale",IF(W21<3,"You have selected too few subtests for calculation of a Verbal Comprehension Scale","")) -> You have selected too few subtests for calculation of a Verbal Comprehension Scale | S12: bd | T12: TRUE | U12: =IF(T12=TRUE,1,0) -> 1 | V12: p | W12: VCI | Y12: PRI | Z12: fs | AA12: psi | AC12: gl | AE12: wmi | AG12: ps
F13: 11 | G13: =IF(F13="","",IF(U13=0,"("&F13&")",F13)) -> (11) | K13: =IF(U13=0,"",IF(F13="","",F13)) ->  | L13: 63 | S13: sim | T13: FALSE | U13: =IF(T13=TRUE,1,0) -> 0 | V13: v | W13: =G28 -> 22 | Y13: =H28 -> 33 | Z13: =K28 -> 91 | AA13: =I28 -> 20 | AC13: =J28 -> 16 | AE13: =F17+F19+F24 -> 31 | AG13: =F14+F23 -> 20
F14: 10 | I14: =IF(F14="","",IF(U14=0,"("&F14&")",F14)) -> 10 | K14: 10 | L14: 50 | N14: =IF(W20>3,"You have selected too many subtests for calculation of a Perceptual Reasoning Scale",IF(W20<3,"You have selected too few subtests for calculation of a Perceptual Reasoning Scale","")) ->  | S14: ds | T14: TRUE | U14: 1 | V14: w
F15: 10 | H15: =IF(F15="","",IF(U15=0,"("&F15&")",F15)) -> 10 | K15: 10 | L15: 50 | S15: pcn | T15: TRUE | U15: 1 | V15: p | Y15: ss | AB15: ss
F16: 6 | J16: =IF(F16="","",IF(U16=0,"("&F16&")",F16)) -> 6 | K16: 6 | L16: 9 | N16: =IF(W22<2,"You have too few subtest scores for calculation of a Working Memory Scale",IF(W22>2,"You have too many subtest scores for calculation of a Working Memory Scale","")) ->  | S16: cd | T16: TRUE | U16: 1 | V16: s
F17: 11 | G17: =IF(F17="","",IF(U17=0,"("&F17&")",F17)) -> 11 | K17: 11 | L17: 63 | S17: v | T17: TRUE | U17: 1 | V17: v | Z17: S V C | AA17: =IF(U13+U17+U20=3,1,0) -> 0 | AC17: BD MR PCn | AE17: =IF(U12+U19+U15=3,1,0) -> 1
F18: 10 | I18: =IF(F18="","",IF(U18=0,"("&F18&")",F18)) -> 10 | K18: 10 | L18: 50 | N18: =IF(W19<2,"You have too few subtest scores for calculation of a Processing Speed Scale",IF(W19>2,"You have too many subtest scores for calculation of a Processing Speed Scale","")) ->  | S18: lns | T18: TRUE | U18: 1 | V18: w | Z18: I V C | AA18: =IF(U20+U17+U24=3,2,0) -> 0 | AC18: BD MR PCmp | AE18: =IF(U12+U19+U22=3,2,0) -> 0
F19: 10 | H19: =IF(F19="","",IF(U19=0,"("&F19&")",F19)) -> 10 | K19: 10 | L19: 50 | S19: mr | T19: TRUE | U19: 1 | V19: p | W19: =U16+U21+U23 -> 2 | X19: psi | Z19: S I C | AA19: =IF(U13+U24+U20=3,3,0) -> 0
F20: 11 | G20: =IF(F20="","",IF(U20=0,"("&F20&")",F20)) -> 11 | K20: 11 | L20: 63 | S20: comp | T20: TRUE | U20: 1 | V20: v | W20: =U12+U15+U19+U22 -> 3 | X20: PRI | Z20: S V I | AA20: =IF(U13+U24+U17=3,4,0) -> 0 | AC20: BD PCmp PCn | AE20: =IF(U12+U22+U15=3,3,0) -> 0
F21: 10 | J21: =IF(F21="","",IF(U21=0,"("&F21&")",F21)) -> 10 | K21: =IF(U21=0,"",IF(F21="","",F21)) -> 10 | L21: 50 | N21: =IF(W23>10,"You have selected too many subtests for inclusion in a Full Scale IQ",IF(W23<10,"You have selected too few subtests for calculation of a Full Scale IQ","")) -> You have selected too few subtests for calculation of a Full Scale IQ | S21: ss | T21: TRUE | U21: 1 | V21: s | W21: =U13+U17+U20+U24+U26 -> 2 | X21: verbal | Z21: WR V C | AA21: =IF(U20+U26+U17=3,5,0) -> 0
F22: 10 | H22: =IF(F22="","",IF(U22=0,"("&F22&")",F22)) -> (10) | L22: 50 | S22: pcn | T22: FALSE | U22: 0 | V22: p | W22: =U14+U18+U25 -> 2 | X22: wm | Z22: S WR C | AA22: =IF(U20+U13+U26=3,6,0) -> 0 | AC22: PCmp MR PCn | AE22: =IF(U19+U22+U15=3,4,0) -> 0
F23: 10 | J23: =IF(F23="","",IF(U23=0,"("&F23&")",F23)) -> (10) | L23: 50 | N23: =IF(AND(W21=3,AA24>0),"The VCI is based upon the following subtests: "&CHOOSE(AA24,Z17,Z18,Z19,Z20,Z21,Z22,Z23),IF(AA24=0,"The combination of VCI subtests chosen cannot be used to compute an IQ.","")) -> The combination of VCI subtests chosen cannot be used to compute an IQ. | S23: ca | T23: FALSE | U23: =IF(T23=TRUE,1,0) -> 0 | V23: s | W23: =SUM(U12:U26) -> 9 | X23: total | Z23: S V WR | AA23: =IF(U26+U13+U17=3,7,0) -> 0
F24: 10 | G24: =IF(F24="","",IF(U24=0,"("&F24&")",F24)) -> (10) | L24: 50 | S24: i | T24: FALSE | U24: 0 | V24: v | Z24: v combo | AA24: =SUM(AA17:AA23) -> 0 | AD24: p combo | AE24: =SUM(AE17:AE23) -> 1 | AF24: cd or ss | AG24: =IF(U19=1,1,IF(U17=1,2,0)) -> 1
F25: 10 | I25: =IF(F25="","",IF(U25=0,"("&F25&")",F25)) -> (10) | L25: 50 | N25: =IF(AND(W20=3,AE24>0),"The PRI is based upon the following subtests: "&CHOOSE(AE24,AC17,AC18,AC20,AC22,),IF(AE24=0,"The combination of PRI subtests chosen cannot be used to compute an IQ.","")) -> The PRI is based upon the following subtests: BD MR PCn | S25: a | T25: FALSE | U25: 0 | V25: w
F26: 10 | G26: =IF(F26="","",IF(U26=0,"("&F26&")",F26)) -> (10) | L26: 50 | S26: wr | T26: FALSE | U26: 0 | V26: v
F28: Sums of Scaled Scores | G28: =SUM(G13:G26) -> 22 | H28: =SUM(H12:H24) -> 33 | I28: =SUM(I14:I25) -> 20 | J28: =SUM(J16:J23) -> 16 | K28: =SUM(K12:K26) -> 91
B30: Process Scores | D30: Block Design No Time Bonus | F30: 6 | L30: =IF(F30="","",LOOKUP(F30,$D$365:$W$365,$D$366:$W$366)) -> 9
D31: Digit Span Forward | F31: 12 | L31: =IF(F31="","",LOOKUP(F31,$D$365:$W$365,$D$366:$W$366)) -> 75
D32: Digit Span Backward | F32: 4 | L32: =IF(F32="","",LOOKUP(F32,$D$365:$W$365,$D$366:$W$366)) -> 2
D33: Cancellation Random | F33: 7 | L33: =IF(F33="","",LOOKUP(F33,$D$365:$W$365,$D$366:$W$366)) -> 16
D34: Cancellation Structured | F34: 9 | L34: =IF(F34="","",LOOKUP(F34,$D$365:$W$365,$D$366:$W$366)) -> 37
D35: Longest Digit Forward (raw score) | G35: 6
D36: Longest Digit Backward (raw score) | G36: 2 | U36: s | V36: =IF(F13="","",1) -> 1 | W36: =IF(F13="","",F13) -> 11 | X36: bd | Y36: =IF(F12="","",1) -> 1 | Z36: =IF(F12="","",F12) -> 13 | AA36: cd | AB36: =IF(F16="","",1) -> 1 | AC36: =IF(F16="","",F16) -> 6 | AD36: ds | AE36: =IF(F14="","",1) -> 1 | AF36: =IF(F14="","",F14) -> 10
A37: WISC-IV Interpretive Worksheet | U37: v | V37: =IF(F17="","",1) -> 1 | W37: =IF(F17="","",F17) -> 11 | X37: pcn | Y37: =IF(F15="","",1) -> 1 | Z37: =IF(F15="","",F15) -> 10 | AA37: ss | AB37: =IF(F21="","",1) -> 1 | AC37: =IF(F21="","",F21) -> 10 | AD37: ln | AE37: =IF(F18="","",1) -> 1 | AF37: =IF(F18="","",F18) -> 10
B38: 1. Evaluate the Full Scale IQ | U38: c | V38: =IF(F20="","",1) -> 1 | W38: =IF(F20="","",F20) -> 11 | X38: mr | Y38: =IF(F19="","",1) -> 1 | Z38: =IF(F19="","",F19) -> 10 | AA38: ca | AB38: =IF(F23="","",1) -> 1 | AC38: =IF(F23="","",F23) -> 10 | AD38: a | AE38: =IF(F25="","",1) -> 1 | AF38: =IF(F25="","",F25) -> 10
AB40: =SUM(AB36:AB37) -> 2 | AE40: =SUM(AE36:AE37) -> 2
H42: Obtained | J42: Percentile | L42: Confidence | U42: i | V42: =IF(F24="","",1) -> 1 | W42: =IF(F24="","",F24) -> 10 | X42: pcm | Y42: =IF(F22="","",1) -> 1 | Z42: =IF(F22="","",F22) -> 10 | AB42: =SUM(AB36:AB38) -> 3 | AC42: =SUM(AC36:AC38) -> 26 | AE42: =SUM(AE36:AE38) -> 3 | AF42: =SUM(AF36:AF38) -> 30
F43: SS Totals | H43: IQ | J43: Rank | L43: Bands | U43: wr | V43: =IF(F26="","",1) -> 1 | W43: =IF(F26="","",F26) -> 10
T44: 2 | W44: =SUM(W36:W43) -> 53 | Z44: =SUM(Z36:Z43) -> 43
D45: Verbal Comprehension | F45: =IF(W21=3,"("&W13&")","") ->  | H45: 100 | J45: =IF(H45="","",LOOKUP(H45,B359:BG360)) -> 50 | L45: =IF(H45="","",X45&" - "&Y45) -> 93 - 107 | N45: =IF(H45="","",LOOKUP((LOOKUP(H45,D435:O436)+H45),$D$433:$J$434)&" to "&LOOKUP((LOOKUP(H45,D435:O435,D437:O437)+H45),$D$433:$J$434)) -> Average to Average | T45: 0.94 | U45: =100+T45*(H45-100) -> 100 | V45: =15*T45*SQRT((1-T45)) -> 3.453780537 | W45: =IF(T44=1,V45*1.65,V45*1.96) -> 6.769409853 | X45: =ROUND(U45-W45,0) -> 93 | Y45: =ROUND(U45+W45,0) -> 107 | AD45: =SUM(Y36:Y43) -> 4
D46: Perceptual Reasoning | F46: =IF(W20=3,"("&Y13&")","") -> (33) | H46: 100 | J46: =IF(H46="","",LOOKUP(H46,B359:BG360)) -> 50 | L46: =IF(H46="","",X46&" - "&Y46) -> 92 - 108 | N46: =IF(H46="","",LOOKUP((LOOKUP(H46,D435:O436)+H46),$D$433:$J$434)&" to "&LOOKUP((LOOKUP(H46,D435:O435,D437:O437)+H46),$D$433:$J$434)) -> Average to Average | T46: 0.92 | U46: =100+T46*(H46-100) -> 100 | V46: =15*T46*SQRT((1-T46)) -> 3.903229432 | W46: =IF(T44=1,V46*1.65,V46*1.96) -> 7.650329687 | X46: =ROUND(U46-W46,0) -> 92 | Y46: =ROUND(U46+W46,0) -> 108 | AA46: =SUM(V36:V43) -> 5 | AB46: =SUM(V36:V44) -> 5 | AD46: =SUM(Y36:Y43) -> 4 | AI46: =AB46+AD46+AB42+AE42 -> 15
D47: Working Memory | F47: =IF(AB42<2,"","("&AA13&")") -> (20) | H47: 100 | J47: =IF(H47="","",LOOKUP(H47,B359:BG360)) -> 50 | L47: =IF(H47="","",X47&" - "&Y47) -> 92 - 108 | N47: =IF(H47="","",LOOKUP((LOOKUP(H47,D435:O436)+H47),$D$433:$J$434)&" to "&LOOKUP((LOOKUP(H47,D435:O435,D437:O437)+H47),$D$433:$J$434)) -> Average to Average | T47: 0.92 | U47: =100+T47*(H47-100) -> 100 | V47: =15*T47*SQRT((1-T47)) -> 3.903229432 | W47: =IF(T44=1,V47*1.65,V47*1.96) -> 7.650329687 | X47: =ROUND(U47-W47,0) -> 92 | Y47: =ROUND(U47+W47,0) -> 108 | Z47: Vx= | AA47: =W44/AA46 -> 10.6 | AB47: =W44/AB46 -> 10.6 | AC47: =SUM(W36:W43) -> 53 | AD47: Px= | AE47: =Z44/AD46 -> 10.75 | AG47: =SUM(W44+Z44+AC42+AF42) -> 152 | AH47: FSx= | AI47: =AG47/AI46 -> 10.13333333 | AK47: vp diff | AL47: =ABS(H45-H46) -> 0
D48: Processing Speed | F48: =IF(AE42<2,"","("&AC13&")") -> (16) | H48: 109 | J48: =IF(H48="","",LOOKUP(H48,B359:BG360)) -> 73 | L48: =IF(H48="","",X48&" - "&Y48) -> 99 - 117 | N48: =IF(H48="","",LOOKUP((LOOKUP(H48,D435:O436)+H48),$D$433:$J$434)&" to "&LOOKUP((LOOKUP(H48,D435:O435,D437:O437)+H48),$D$433:$J$434)) -> Average to High Average | T48: 0.88 | U48: =100+T48*(H48-100) -> 107.92 | V48: =15*T48*SQRT((1-T48)) -> 4.572614132 | W48: =IF(T44=1,V48*1.65,V48*1.96) -> 8.962323699 | X48: =ROUND(U48-W48,0) -> 99 | Y48: =ROUND(U48+W48,0) -> 117 | Z48: v max | AA48: =MAX(W36:W43) -> 11 | AC48: p max | AD48: =MAX(Z36:Z43) -> 13 | AE48: =IF(AA48=AD48,AA48,IF(AA48>AD48,AA48,AD48)) -> 13 | AL48: =LOOKUP(AL47,D378:AR378,D387:AR387) -> 100
D49: Full Scale | F49: =IF(W23=10,"("&Z13&")","") ->  | H49: 75 | J49: =IF(H49="","",LOOKUP(H49,B359:BG360)) -> 5 | L49: =IF(H49="","",X49&" - "&Y49) -> 71 - 81 | N49: =IF(H49="","",LOOKUP((LOOKUP(H49,D435:O436)+H49),$D$433:$J$434)&" to "&LOOKUP((LOOKUP(H49,D435:O435,D437:O437)+H49),$D$433:$J$434)) -> Borderline to Low Average | T49: 0.97 | U49: =100+T49*(H49-100) -> 75.75 | V49: =15*T49*SQRT((1-T49)) -> 2.520133925 | W49: =IF(T44=1,V49*1.65,V49*1.96) -> 4.939462493 | X49: =ROUND(U49-W49,0) -> 71 | Y49: =ROUND(U49+W49,0) -> 81 | Z49: v min | AA49: =MIN(W36:W43) -> 10 | AC49: p min | AD49: =MIN(Z36:Z43) -> 10 | AE49: =IF(AA49=AD49,AA49,IF(AA49<AD49,AA49,AD49)) -> 10 | AF49: =AE48-AE49 -> 3
Z50: diff | AA50: =ABS(AA48-AA49) -> 1 | AC50: diff | AD50: =ABS(AD48-AD49) -> 3 | AF50: fs sc diff | AG50: =AF49 -> 3
Z51: v scat | AA51: =IF(AA46<6,"",IF(AA46=6, LOOKUP(AA50,D378:V378,D379:V379),LOOKUP(AA50,D378:V378,D380:V380))) ->  | AC51: p scat | AD51: =IF(AD46<4,"",LOOKUP(AD50,D378:V378,D381:V381)) -> 90 | AF51: 11fs scat | AG51: =LOOKUP(AG50,D378:V378,D383:W383) -> 99.6 | AI51: =IF(AI46=14,AE53,IF(AI46=11,AG51,AG52)) -> 99.8
B52: 2. Is the VCI versus PRI Significantly Different? Note: See Table B.1 for standardization frequency | AF52: 1213fs scat | AG52: =LOOKUP(AG50,D378:V378,D384:W384) -> 99.8
AD53: 14fs scat | AE53: =LOOKUP(AG50,D378:V378,D385:W385) -> 100
F54: Significance | L54: Is there a significant difference? | Y54: =IF(H45=H46,0,IF(H45>H46,1,2)) -> 0
D55: ="VCI ("&H45&") vs PRI ("&H46&") Difference" -> VCI (100) vs PRI (100) Difference | F55: (p < .01) | H55: (p < .05) | J55: none | T55: =ABS(H45-H46) -> 0 | U55: =IF(T55=1," point"," points") -> points | Y55: =IF(ABS(H45-H46)>8,1,-1) -> -1
D56: =IF(OR(H45="",H46=""),"",T55&U55) -> 0 points | F56: 15 or more | H56: 11 | J56: 0 - 10 | L56: =IF(OR(H45="",H46=""),"",IF(T55>14, "YES, p = .01", IF(T55<11, "NO","YES, p = .05"))) -> NO | T56: =IF(L56="NO",0,1) -> 0 | V56: Because there is no significant differences between the VCI and PRI, explain the meaning of the scales not being significantly different. | Y56: =SUM(Y54+Y55) -> -1
V57: Because there is a significant difference between the VCI and PRI, interpret the FSIQ with caution. Examine further steps.
D59: =IF(L56="","",IF(T56=0,V56,V57)) -> Because there is no significant differences between the VCI and PRI, explain the meaning of the scales not being significantly different.
B63: 3. Is the VCI versus PRI Difference Abnormally Large? Note: See Table B.2 for standardization frequency
W64: 1 | X64: 2 | Y64: 3 | Z64: 4 | AA64: 5
C65: ="VCI ("&H45&") vs PRI ("&H46&") Difference" -> VCI (100) vs PRI (100) Difference | F65: Size of Difference needed for abnormality | L65: Is Size of Difference Abnormal? | T65: =IF(H45=H46,0,IF(H45>H46,1,2)) -> 0 | U65: =IF(H49>119,5,IF(H49>109,4,IF(H49>89,3,IF(H49>79,2,1)))) -> 1 | V65: 1 | W65: 15 | X65: 19 | Y65: 16 | Z65: 15 | AA65: 20
C66: =D56&" ("&T66&")" -> 0 points (V = P) | F66: =INDEX(W65:AA66,T65,U65) -> 18 | L66: =IF(D56="","",IF(T55<F66,"NO","YES")) -> NO | T66: =IF(H45=H46,"V = P",IF(H45>H46,"V > P","V < P")) -> V = P | U66: IQ group | V66: 2 | W66: 18 | X66: 18 | Y66: 16 | Z66: 18 | AA66: 17
T68: =IF(L66="NO",0,1) -> 0 | V68: Because no abnormal differences are found, determine if the noted differences are interpretable.
D69: =IF(L66="","",IF(T68=0,V68,V69)) -> Because no abnormal differences are found, determine if the noted differences are interpretable. | V69: Because an abnormal difference was found, explain the abnormally large VCI vs PRI difference.
B73: 4. Are the VCI and PRI composites interpretable? Note: See Table B.6 for standardization frequency
D75: A. Is there abnormal VCI scatter? | M75: Is there abnormal scatter?
D76: Verbal Subtests High-Low Difference | I76: Normal | K76: Abnormal
D77: =AA50&U77&" between "&AA46&" subtests" -> 1 point between 5 subtests | I77: 0 - 5 | K77: 6 or more | M77: =IF(AA50>5,"YES","NO") -> NO | U77: =IF(AA50=1," point"," points") -> point
D80: B. Is there abnormal PRI scatter? | M80: Is there abnormal scatter?
D81: Perceptual Reasoning Subtests High-Low Difference | I81: Normal | K81: Abnormal | U81: =IF(M77="NO",0,1) -> 0
D82: =AD50&U83&" between "&AD46&" subtests" -> 3 points between 4 subtests | I82: 0 - 7 | K82: 8 or more | M82: =IF(AD50>7,"YES","NO") -> NO | U82: =IF(M82="NO",0,1) -> 0 | V82: =U81+U82 -> 0 | W82: Because each answers to A and B was NO, the VCI versus PRI discrepancy is interpretable.
U83: =IF(AD50=1," point"," points") -> points | W83: Because an answer to either A or B was YES, the VCI versus PRI discrepancy differences should probably not be interpreted.
D85: =IF(V82=0,W82,W83) -> Because each answers to A and B was NO, the VCI versus PRI discrepancy is interpretable.
B89: 5. Determine if the Working Memory Index is interpretable. Note: See Table B.4 for standardization frequency
D91: A. Is there a significant difference between the WMI subtests? | M91: Is there abnormal scatter?
D92: =IF(AB32=1,"No Index Computed","WMI Subtests [ DS ("&F14&") LNS ("&F18&") ] Difference ") -> WMI Subtests [ DS (10) LNS (10) ] Difference | I92: Normal | K92: Abnormal | U92: =ABS(AF36-AF37) -> 0
D93: =U92&U94 -> 0 points | I93: 0 - 4 | K93: 5 or more | M93: =IF(AE40<>2,"",IF(U92>4,"YES","NO")) -> NO | U93: =IF(M93="NO",0,1) -> 0
U94: =IF(U92=1," point"," points") -> points
D96: =IF(AE40<>2,"No index computed",IF(U93=0,"The WMI may be interpreted.","Because of subtest differences in the WMI, do not interpret WMI.")) -> The WMI may be interpreted.
B99: 6. Determine if the Processing Speed Index is interpretable. Note: See Table B.4 for standardization frequency
D101: A. Is there a significant difference between the PSI subtests? | M101: Is there abnormal scatter?
D102: =IF(AB42=1,"No Index Computed","PSI Subtests [ SS ("&F21&") Cd ("&F16&") ] Difference ") -> PSI Subtests [ SS (10) Cd (6) ] Difference | I102: Normal | K102: Abnormal | U102: =ABS(AC36-AC37) -> 4
D103: =U102&U104 -> 4 points | I103: 0 - 3 | K103: 4 or more | M103: =IF(AB40<>2,"",IF(U102>3,"YES","NO")) -> YES | U103: =IF(M103="NO",0,1) -> 1
U104: =IF(U102=1," point"," points") -> points
D106: =IF(AB40<>2,"No index computed",IF(U103=0,"The PSI may be interpreted.","Because of subtest differences in the PSI, do not interpret PSI.")) -> Because of subtest differences in the PSI, do not interpret PSI.
B109: 7. Interpret significant strengths and weaknesses.
I110: Verbal Comprehension mean | K110: =AA47 -> 10.6 | L110: =" based on "&AA46&" subtests" -> based on 5 subtests
I111: Perceptual Reasoning mean | K111: =AE47 -> 10.75 | L111: =" based on "&AD46&" subtests" -> based on 4 subtests
I112: Full Scale mean | K112: =AI47 -> 10.13333333 | L112: =" based on "&AI46&" subtests" -> based on 15 subtests
H114: Verbal / Perceptual Statistics | N114: Full Scale Statistics
F115: ss | I115: Crit. Value | K115: Deviation | N115: Crit. Value | P115: Deviation
B116: Verbal | D116: Similarities | F116: =IF(F13="","",F13) -> 11 | I116: =IF(F116="","",IF($AB$46<3,"",2)) -> 2 | K116: =IF(F116="","",(F116-$K$110)) -> 0.4 | L116: =IF(F116="","",IF(SUM(U116+V116)=4,"s",IF(SUM(U116+V116)=2,"w",""))) ->  | N116: =IF(F116="","",IF($AI$46<7,"",3)) -> 3 | P116: =IF(N116="","",($F116-K$112)) -> 0.8666666667 | Q116: =IF(F116="","",IF(SUM(W116+X116)=4,"s",IF(SUM(W116+X116)=2,"w",""))) ->  | U116: =IF(ABS(K116)>I116,3,0) -> 0 | V116: =SIGN(K116) -> 1 | W116: =IF(ABS(P116)>N116,3,0) -> 0 | X116: =SIGN(P116) -> 1 | AA116: =IF(W116=0,0,1) -> 0 | AB116: =Q116 -> 
D117: Vocabulary | F117: =IF(F17="","",F17) -> 11 | I117: =IF(F117="","",IF($AB$46<3,"",2)) -> 2 | K117: =IF(F117="","",(F117-$K$110)) -> 0.4 | L117: =IF(F117="","",IF(SUM(U117+V117)=4,"s",IF(SUM(U117+V117)=2,"w",""))) ->  | N117: =IF(F117="","",IF($AI$46<7,"",3)) -> 3 | P117: =IF(N117="","",($F117-K$112)) -> 0.8666666667 | Q117: =IF(F117="","",IF(SUM(W117+X117)=4,"s",IF(SUM(W117+X117)=2,"w",""))) ->  | U117: 0 | V117: 1 | W117: =IF(ABS(P117)>N117,3,0) -> 0 | X117: =SIGN(P117) -> 1 | AA117: =IF(W117=0,0,1) -> 0 | AB117: =Q117 -> 
D118: Comprehension | F118: =IF(F20="","",F20) -> 11 | I118: =IF(F118="","",IF($AB$46<3,"",2)) -> 2 | K118: =IF(F118="","",(F118-$K$110)) -> 0.4 | N118: =IF(F118="","",IF($AI$46<7,"",IF(AI46>12,3,2))) -> 3 | P118: =IF(N118="","",($F118-K$112)) -> 0.8666666667 | Q118: =IF(F118="","",IF(SUM(W118+X118)=4,"s",IF(SUM(W118+X118)=2,"w",""))) ->  | U118: 0 | V118: 1 | W118: 0 | X118: 1 | AA118: 0 | AB118: =Q118 ->  | AF118: =LOOKUP(#REF!,R390:W390,R391:W391) ->  | AG118: =LOOKUP(#REF!,R392:W392,R393:W393) ->  | AH118: =LOOKUP(#REF!,R394:W394,R395:W395) ->  | AI118: =LOOKUP(#REF!,R396:W396,R397:W397) ->  | AJ118: =LOOKUP(#REF!,R398:W398,R399:W399) ->  | AK118: =CHOOSE(AJ52,AF118,AG118,AH118,AI118,AJ118) -> 
D119: Information | F119: =IF(F24="","",F24) -> 10 | I119: =IF(F119="","",IF($AB$46<3,"",2)) -> 2 | K119: =IF(F119="","",(F119-$K$110)) -> -0.6 | N119: =IF(F119="","",IF($AI$46<7,"",3)) -> 3 | P119: =IF(N119="","",($F119-K$112)) -> -0.1333333333 | Q119: =IF(F119="","",IF(SUM(W119+X119)=4,"s",IF(SUM(W119+X119)=2,"w",""))) ->  | U119: 0 | V119: -1 | W119: 0 | X119: -1 | AA119: 0 | AB119: =Q119 ->  | AF119: =LOOKUP(#REF!,D390:I390,D391:I391) ->  | AG119: =LOOKUP(#REF!,D392:I392,D393:I393) ->  | AH119: =LOOKUP(#REF!,D394:I394,D395:I395) ->  | AI119: =LOOKUP(#REF!,D396:I396,D397:I397) ->  | AJ119: =LOOKUP(#REF!,D398:I398,D399:I399) ->  | AK119: =CHOOSE(AJ52,AF119,AG119,AH119,AI119,AJ119) -> 
D120: Word Reasoning | F120: =IF(F26="","",F26) -> 10 | I120: =IF(F120="","",IF($AB$46<3,"",2)) -> 2 | K120: =IF(F120="","",(F120-$K$110)) -> -0.6 | N120: =IF(F120="","",IF($AI$46<7,"",3)) -> 3 | P120: =IF(N120="","",($F120-K$112)) -> -0.1333333333 | Q120: =IF(F120="","",IF(SUM(W120+X120)=4,"s",IF(SUM(W120+X120)=2,"w",""))) ->  | U120: 0 | V120: -1 | W120: 0 | X120: -1 | AA120: 0 | AB120: =Q120 ->  | AF120: =LOOKUP(#REF!,K390:P390,K391:P391) ->  | AG120: =LOOKUP(#REF!,K392:P392,K393:P393) ->  | AH120: =LOOKUP(#REF!,K394:P394,K395:P395) ->  | AI120: =LOOKUP(#REF!,K396:P396,K397:P397) ->  | AJ120: =LOOKUP(#REF!,K398:P398,K399:P399) ->  | AK120: =CHOOSE(AJ52,AF120,AG120,AH120,AI120,AJ120) -> 
U121: 0 | V121: 0 | AA121: 0 | AB121: =Q122 -> 
B122: Perceptual | D122: Block Design | F122: =IF(F12="","",F12) -> 13 | I122: =IF(F122="","",IF($AD$46<3,"",IF(AD46=5,3,2))) -> 2 | K122: =IF(F122="","",(F122-$K$111)) -> 2.25 | L122: s | N122: =IF(F122="","",IF($AI$46<7,"",3)) -> 3 | P122: =IF(N122="","",($F122-K$112)) -> 2.866666667 | Q122: =IF(F122="","",IF(SUM(W122+X122)=4,"s",IF(SUM(W122+X122)=2,"w",""))) ->  | U122: 3 | V122: 1 | W122: 0 | X122: 1 | AA122: 0 | AB122: =Q123 -> 
D123: Picture Concepts | F123: =IF(F15="","",F15) -> 10 | I123: =IF(F123="","",IF($AB$46<3,"",2)) -> 2 | K123: =IF(F123="","",(F123-$K$111)) -> -0.75 | N123: =IF(F123="","",IF($AI$46<7,"",3)) -> 3 | P123: =IF(N123="","",($F123-K$112)) -> -0.1333333333 | U123: 0 | V123: -1 | W123: 0 | X123: -1 | AA123: 0 | AB123: =Q124 -> 
D124: Matrix Reasoning | F124: =IF(F19="","",F19) -> 10 | I124: =IF(F124="","",IF($AB$46<3,"",2)) -> 2 | K124: =IF(F124="","",(F124-$K$111)) -> -0.75 | N124: =IF(F124="","",IF($AI$46<7,"",3)) -> 3 | P124: =IF(N124="","",($F124-K$112)) -> -0.1333333333 | U124: 0 | V124: -1 | W124: 0 | X124: -1 | AA124: 0 | AB124: =Q125 -> 
D125: Picture Completion | F125: =IF(F22="","",F22) -> 10 | I125: =IF(F125="","",IF($AB$46<3,"",2)) -> 2 | K125: =IF(F125="","",(F125-$K$111)) -> -0.75 | N125: =IF(F125="","",IF($AI$46<7,"",3)) -> 3 | P125: =IF(N125="","",($F125-K$112)) -> -0.1333333333 | U125: 0 | V125: -1 | W125: 0 | X125: -1 | AA125: 0 | AB125: =Q126 -> 0
AA126: 0 | AB126: =Q128 -> 
B127: WM | D127: Digit Span | F127: =IF(F14="","",F14) -> 10 | N127: =IF(F127="","",IF($AI$46<7,"",3)) -> 3 | P127: =IF(N127="","",($F127-K$112)) -> -0.1333333333 | W127: 0 | X127: -1
D128: Letter-Number Sequence | F128: =IF(F18="","",F18) -> 10 | N128: =IF(F128="","",IF($AI$46<7,"",3)) -> 3 | P128: =IF(N128="","",($F128-K$112)) -> -0.1333333333 | W128: 0 | X128: -1 | AA128: 0 | AB128: =Q129 -> 
D129: Arithmetic | F129: =IF(F25="","",F25) -> 10 | L129: =IF(F129="","",IF(SUM(U128+V128)=4,"s",IF(SUM(U128+V128)=2,"w",""))) ->  | N129: =IF(F129="","",IF($AI$46<7,"",3)) -> 3 | P129: =IF(N129="","",($F129-K$112)) -> -0.1333333333 | W129: 0 | X129: -1 | AA129: 0
B131: Pr. Spd. | D131: Coding | F131: =IF(F16="","",F16) -> 6 | N131: =IF(F131="","",IF($AI$46<7,"",3)) -> 3 | P131: =IF(N131="","",($F131-K$112)) -> -4.133333333 | Q131: w | W131: 3 | X131: -1 | AA131: 1
D132: Symbol Search | F132: =IF(F21="","",F21) -> 10 | N132: =IF(F132="","",IF($AI$46<7,"",3)) -> 3 | P132: =IF(N132="","",($F132-K$112)) -> -0.1333333333 | W132: 0 | X132: -1 | AA132: =SUM(AA116:AA122) -> 0
D133: Cancellation | F133: =IF(F23="","",F23) -> 10 | N133: =IF(F133="","",IF($AI$46<7,"",3)) -> 3 | P133: =IF(N133="","",($F133-K$112)) -> -0.1333333333 | W133: 0 | X133: -1
AA134: =SUM(AA123:AA131) -> 1 | AC134: I | AD134: Ds | AE134: V | AF134: A | AG134: C | AH134: S | AI134: PC | AJ134: PA | AK134: BD | AL134: OA | AM134: Dsm
B135: 8. Compare relevant subtest groupings (.05 level of significance)
C137: ="Word Reasoning ("&F120&") "&V137&" Matrix Reasoning ("&F124&")" -> Word Reasoning (10) = Matrix Reasoning (10) | K137: =IF(OR(F120="",F124=""),"",W137&" point "&X137&" difference") -> 0 point nonsignificant difference | T137: wr/mr | U137: =IF(F120=F124,1,IF(F120>F124,2,3)) -> 1 | V137: =CHOOSE(U137,"=",">","<") -> = | W137: =ABS(F120-F124) -> 0 | X137: =IF(W137>3,"significant","nonsignificant") -> nonsignificant
C139: ="Matrix Reasoning ("&F124&") "&V139&" Block Design ("&F122&")" -> Matrix Reasoning (10) < Block Design (13) | K139: =IF(OR(F124="",F122=""),"",W139&" point "&X139&" difference") -> 3 point significant difference | T139: mr/bd | U139: =IF(F124=F122,1,IF(F124>F122,2,3)) -> 3 | V139: =CHOOSE(U139,"=",">","<") -> < | W139: =ABS(F122-F124) -> 3 | X139: =IF(W139>2,"significant","nonsignificant") -> significant
C141: ="Similarities ("&F116&") "&V141&" Picture Concepts ("&F123&")" -> Similarities (11) > Picture Concepts (10) | K141: =IF(OR(F116="",F123=""),"",W141&" point "&X141&" difference") -> 1 point nonsignificant difference | T141: sim/pcm | U141: =IF(F116=F123,1,IF(F116>F123,2,3)) -> 2 | V141: =CHOOSE(U141,"=",">","<") -> > | W141: =ABS(F123-F116) -> 1 | X141: =IF(W141>3,"significant","nonsignificant") -> nonsignificant
C143: ="Information ("&F119&") "&V143&" Comprehension ("&F118&")" -> Information (10) < Comprehension (11) | K143: =IF(OR(F119="",F118=""),"",W143&" point "&X143&" difference") -> 1 point nonsignificant difference | T143: i/c | U143: =IF(F119=F118,1,IF(F119>F118,2,3)) -> 3 | V143: =CHOOSE(U143,"=",">","<") -> < | W143: =ABS(F119-F118) -> 1 | X143: =IF(W143>3,"significant","nonsignificant") -> nonsignificant
C145: ="Digit Span ("&F127&") "&V145&" Arithmetic ("&F129&")" -> Digit Span (10) = Arithmetic (10) | K145: =IF(OR(F127="",F129=""),"",W145&" point "&X145&" difference") -> 0 point nonsignificant difference | T145: ds/a | U145: =IF(F127=F129,1,IF(F127>F129,2,3)) -> 1 | V145: =CHOOSE(U145,"=",">","<") -> = | W145: =ABS(F127-F129) -> 0 | X145: =IF(W145>2,"significant","nonsignificant") -> nonsignificant
C147: ="Digit Span ("&F127&") "&V147&" Letter Number Sequence ("&F128&")" -> Digit Span (10) = Letter Number Sequence (10) | K147: =IF(OR(F127="",F128=""),"",W147&" point "&X147&" difference") -> 0 point nonsignificant difference | T147: DS/lns | U147: =IF(F127=F128,1,IF(F127>F128,2,3)) -> 1 | V147: =CHOOSE(U147,"=",">","<") -> = | W147: =ABS(F127-F128) -> 0 | X147: =IF(W147>2,"significant","nonsignificant") -> nonsignificant
C149: ="Arithmetic ("&F129&") "&V149&" Letter Number Sequence ("&F128&")" -> Arithmetic (10) = Letter Number Sequence (10) | K149: =IF(OR(F128="",F129=""),"",W149&" point "&X149&" difference") -> 0 point nonsignificant difference | T149: a/lns | U149: =IF(F129=F128,1,IF(F129>F128,2,3)) -> 1 | V149: =CHOOSE(U149,"=",">","<") -> = | W149: =ABS(F129-F128) -> 0 | X149: =IF(W149>2,"significant","nonsignificant") -> nonsignificant
K150: =IF(OR(F128="",F130=""),"",#REF!&" point "&#REF!&" difference") -> 
C151: ="Coding ("&F131&") "&V151&" Symbol Search ("&F132&")" -> Coding (6) < Symbol Search (10) | K151: =IF(OR(F131="",F132=""),"",W151&" point "&X151&" difference") -> 4 point significant difference | T151: cd/ss | U151: =IF(F131=F132,1,IF(F131>F132,2,3)) -> 3 | V151: =CHOOSE(U151,"=",">","<") -> < | W151: =ABS(F131-F132) -> 4 | X151: =IF(W151>3,"significant","nonsignificant") -> significant
C153: ="Coding ("&F131&") "&V153&" Cancellation ("&F133&")" -> Coding (6) < Cancellation (10) | K153: =IF(OR(F131="",F133=""),"",W153&" point "&X153&" difference") -> 4 point significant difference | T153: cd/ca | U153: =IF(F131=F133,1,IF(F131>F133,2,3)) -> 3 | V153: =CHOOSE(U153,"=",">","<") -> < | W153: =ABS(F131-F133) -> 4 | X153: =IF(W153>3,"significant","nonsignificant") -> significant
B155: 9. Process comparisons
C157: ="Block Design ("&F12&") "&V157&" Block Design No Time Bonus ("&F30&")" -> Block Design (13) > Block Design No Time Bonus (6) | K157: =IF(OR(F12="",F30=""),"",W157&" point "&X157&" difference") -> 7 point significant difference | T157: DS/lns | U157: =IF(F12=F30,1,IF(F12>F30,2,3)) -> 2 | V157: =CHOOSE(U157,"=",">","<") -> > | W157: =ABS(F12-F30) -> 7 | X157: =IF(W157>3,"significant","nonsignificant") -> significant
C159: ="Digit Span Forward ("&F31&") "&V159&" Digit Span Backward ("&F32&")" -> Digit Span Forward (12) > Digit Span Backward (4) | K159: =IF(OR(F31="",F32=""),"",W159&" point "&X159&" difference") -> 8 point significant difference | T159: dsf/dsb | U159: =IF(F31=F32,1,IF(F31>F32,2,3)) -> 2 | V159: =CHOOSE(U159,"=",">","<") -> > | W159: =ABS(F31-F32) -> 8 | X159: =IF(W159>3,"significant","nonsignificant") -> significant
C161: ="Longest Digit Span Forward ("&G35&") "&V161&" Longest Span Backward ("&G36&")" -> Longest Digit Span Forward (6) > Longest Span Backward (2) | K161: =IF(OR(G35="",G36=""),"",W161&" point "&X161&" difference") -> 4 point significant difference | T161: ldf/ldb | U161: =IF(G35=G36,1,IF(G35>G36,2,3)) -> 2 | V161: =CHOOSE(U161,"=",">","<") -> > | W161: =ABS(G35-G36) -> 4 | X161: =IF(W161>3,"significant","nonsignificant") -> significant
C163: ="Cancellation Random ("&F33&") "&V163&" Cancellation Structured ("&F34&")" -> Cancellation Random (7) < Cancellation Structured (9) | K163: =IF(OR(F33="",F34=""),"",W163&" point "&X163&" difference") -> 2 point nonsignificant difference | T163: car/cas | U163: =IF(F33=F34,1,IF(F33>F34,2,3)) -> 3 | V163: =CHOOSE(U163,"=",">","<") -> < | W163: =ABS(F33-F34) -> 2 | X163: =IF(W163>4,"significant","nonsignificant") -> nonsignificant
B167: 10. Relevant subtest cluster groupings | U167: =I170 -> 10 | V167: =M170 -> 10 | W167: =F129 -> 10
P169: Standard Score | T169: sum | U169: count | V169: max | W169: min | X169: range
C170: Fluid Reasoning Gf: | E170: Matrix Reasoning | I170: =F124 -> 10 | J170: Picture Concepts | M170: =F123 -> 10 | N170: ="Arithmetic "&F129 -> Arithmetic 10 | Q170: =AA170 -> 100 | T170: =I170+M170+F129 -> 30 | U170: =COUNT(U167:W167) -> 3 | V170: =MAX(I170:P170) -> 10 | W170: =MIN(I170:P170) -> 10 | X170: =ABS(V170-W170) -> 0 | Y170: =T170/U170 -> 10 | Z170: =15*(Y170-10)/3+100 -> 100 | AA170: =IF(X170>4,"DNI",Z170) -> 100
C172: Nonverbal Fluid Reasoning Gf: | E172: Matrix Reasoning | I172: =F124 -> 10 | J172: Picture Concepts | M172: =F123 -> 10 | Q172: =AA172 -> 100 | T172: =I172+M172 -> 20 | U172: =COUNT(I172:P172) -> 2 | V172: =MAX(I172:P172) -> 10 | W172: =MIN(I172:P172) -> 10 | X172: =ABS(V172-W172) -> 0 | Y172: =T172/U172 -> 10 | Z172: =15*(Y172-10)/3+100 -> 100 | AA172: =IF(X172>4,"DNI",Z172) -> 100
C174: Verbal Fluid Reasoning Gf: | E174: Word Reasoning | I174: =F120 -> 10 | J174: Similarities | M174: =F116 -> 11 | Q174: 102.5 | T174: =I174+M174 -> 21 | U174: 2 | V174: 11 | W174: 10 | X174: 1 | Y174: 10.5 | Z174: 102.5 | AA174: 102.5
C176: Visual Processing Gv: | E176: Block Design | I176: =F122 -> 13 | J176: Picture Concepts | M176: =F123 -> 10 | Q176: 107.5 | T176: 23 | U176: 2 | V176: 13 | W176: 10 | X176: 3 | Y176: 11.5 | Z176: 107.5 | AA176: 107.5
C178: Lexical Knowledge Gc: | E178: Word Reasoning | I178: =I174 -> 10 | J178: Vocabulary | M178: =F117 -> 11 | Q178: 102.5 | T178: 21 | U178: 2 | V178: 11 | W178: 10 | X178: 1 | Y178: 10.5 | Z178: 102.5 | AA178: 102.5
C180: General Information Gc: | E180: Comprehension | I180: =F118 -> 11 | J180: Information | M180: =F119 -> 10 | Q180: 102.5 | T180: 21 | U180: 2 | V180: 11 | W180: 10 | X180: 1 | Y180: 10.5 | Z180: 102.5 | AA180: 102.5
C182: Long Term Memory Gc: | E182: Vocabulary | I182: =F117 -> 11 | J182: Information | M182: =F119 -> 10 | Q182: 102.5 | T182: 21 | U182: 2 | V182: 11 | W182: 10 | X182: 1 | Y182: 10.5 | Z182: 102.5 | AA182: 102.5
C184: Short Term Memory Gsm: | E184: Letter-Number Seq. | I184: =F128 -> 10 | J184: Digit Span | M184: =F127 -> 10 | Q184: 100 | T184: 20 | U184: 2 | V184: 10 | W184: 10 | X184: 0 | Y184: 10 | Z184: 100 | AA184: 100
O186: Note: DNI = Do not interpret
B191: 11. WISC-IV Subtests and Proposed Broad and Narrow Abilities and Cultural and Linguistic Demands
N192: Linguistic Demand | P192: Cultural Loading
F193: Broad Abilities | H193: Narrow Abilities | L193: ss | T193: =F12 -> 13
D194: Verbal Comprehension
D195: Similarities | F195: Gc | H195: Language Development | L195: =F116 -> 11 | N195: high | P195: high
H196: Lexical Knowledge
D198: Vocabulary | F198: Gc | H198: Language Development | L198: =F117 -> 11 | N198: high | P198: high
H199: Lexical Knowledge
D201: Comprehension | F201: Gc | H201: Language Development | L201: =F118 -> 11 | N201: high | P201: high
H202: General Information
D204: Information | F204: Gc | H204: General Information | L204: =F119 -> 10 | N204: high | P204: high
D206: Word Reasoning | F206: Gc | H206: Lexical Knowledge | L206: =F120 -> 10 | N206: high | P206: high | AC206: =IF(ABS(L206)>8,3,0) -> 3 | AE206: =SIGN(L206) -> 1
H207: General Information | AC207: =IF(ABS(L207)>10,3,0) -> 0 | AE207: =SIGN(L207) -> 0
AC208: =IF(ABS(L208)>10,3,0) -> 0 | AE208: =SIGN(L208) -> 0
D209: Perceptual Reasoning
D210: Block Design | F210: Gv | H210: Spatial Relations | L210: =F122 -> 13 | N210: moderate | P210: low | AC210: =IF(ABS(M69)>9,3,0) -> 0 | AE210: =SIGN(M69) -> 0
H211: Visualization | AC211: =IF(ABS(M70)>10,3,0) -> 0 | AE211: =SIGN(M70) -> 0
AC212: =IF(ABS(M71)>10,3,0) -> 0 | AE212: =SIGN(M71) -> 0
D213: Picture Concepts | F213: Gc | H213: General Information | L213: =F123 -> 10 | N213: moderate | P213: moderate | AC213: =IF(ABS(L213)>8,3,0) -> 3 | AE213: =SIGN(L213) -> 1
F214: Gf | H214: Induction
AC215: =IF(ABS(L215)>8,3,0) -> 0 | AE215: =SIGN(L215) -> 0
D216: Matrix Reasoning | F216: Gf | H216: Induction | L216: =F124 -> 10 | N216: low | P216: low | AC216: =IF(ABS(L216)>7,3,0) -> 3 | AE216: =SIGN(L216) -> 1
AC217: =IF(ABS(L217)>8,3,0) -> 0 | AE217: =SIGN(L217) -> 0
D218: Picture Completion | F218: Gv | H218: Flexibility of Closure | L218: =F125 -> 10 | N218: low | P218: high
F219: Gc | H219: General Information | AC219: =IF(ABS(I219-I220)>10.5,3,0) -> 0 | AE219: =SIGN(L219) -> 0
AC220: =IF(ABS(I219-I220)>10.5,3,0) -> 0 | AE220: =SIGN(L220) -> 0
D221: Working Memory
D222: Digit Span | F222: Gsm | H222: Memory Span | L222: =F127 -> 10 | N222: moderate | P222: low | AC222: =IF(ABS(J75-L76)>16.5,3,0) -> 0 | AE222: =SIGN(M75) -> 
AC223: =IF(ABS(J75-L76)>16.5,3,0) -> 0 | AE223: =SIGN(M76) -> 0
D224: Letter-Number Sequence | F224: Gsm | H224: Working Memory | L224: =F128 -> 10 | N224: high | P224: low | AC224: =IF(ABS(L77-I225)>16.5,3,0) -> 0 | AE224: =SIGN(M77) -> 
AC225: =IF(ABS(L77-I225)>16.5,3,0) -> 0 | AE225: =SIGN(L225) -> 0
D226: Arithmetic | F226: Gq | H226: Math Achievement | L226: =F129 -> 10 | N226: moderate | P226: moderate | AC226: =IF(ABS(I226-I227)>18,3,0) -> 0 | AE226: 1
F227: Gf | H227: Quantitative Reasoning | AC227: =IF(ABS(I226-I227)>18,3,0) -> 0 | AE227: 0
AC228: =IF(ABS(I228-I229)>16.5,3,0) -> 0 | AE228: 0
D229: Processing Speed | AC229: =IF(ABS(I228-I229)>16.5,3,0) -> 0 | AE229: 0
D230: Coding | F230: Gs | H230: Rate of test taking | L230: =F131 -> 6 | N230: moderate | P230: low | AC230: =IF(ABS(I230-I231)>18.5,3,0) -> 0 | AE230: 1
AC231: =IF(ABS(I230-I231)>18.5,3,0) -> 0 | AE231: 0
D232: Symbols Search | F232: Gs | H232: Perceptual Speed | L232: =F132 -> 10 | N232: moderate | P232: low | AC232: =IF(ABS(I232-#REF!)>16.5,3,0) ->  | AE232: 1
H233: Rate of test taking | AC233: =IF(ABS(I232-#REF!)>16.5,3,0) ->  | AE233: =SIGN(M80) -> 
D235: Cancellation | F235: Gs | H235: Perceptual Speed | L235: =F133 -> 10 | N235: low | P235: low | AC235: =IF(ABS(L82-J83)>15.5,3,0) -> 0 | AE235: =SIGN(M82) -> 
AC236: =IF(ABS(L82-J83)>15.5,3,0) -> 0 | AE236: 0
D237: Adapted from Appendix A, pp. 445 – 453, The Intelligence Test Desk Reference (ITDR): Gf-Gc Cross-Battery Assessment (McGrew & Flanagan, 1998) and Table 8.3, p. 312, The Wechsler Intelligence Scales and Gf-Gc Theory (Flanagan, McGrew & Ortiz, 2000) | AC237: =IF(ABS(J84-J85)>12.5,3,0) -> 0 | AE237: 0
AC238: =IF(ABS(J84-J85)>12.5,3,0) -> 0 | AE238: 0
AC239: =IF(ABS(J86-J87)>16.5,3,0) -> 0 | AE239: 0
AC240: =IF(ABS(J86-J87)>16.5,3,0) -> 0 | AE240: 0
AC241: =IF(ABS(I241-I242)>15.5,3,0) -> 0 | AE241: =SIGN(L241) -> 0
B242: 12. Dumont-Willis Indexes | AC242: =IF(ABS(I241-I242)>15.5,3,0) -> 0 | AE242: 0
AC243: =IF(ABS(I243-I244)>15,3,0) -> 0 | AE243: 0
D244: DWI-1 (VCI + PRI) = | F244: =(1.092*V244)+34.47 -> 70.506 | U244: =IF(W21=3,W13) -> FALSE | V244: =U244+U245 -> 33 | AC244: =IF(ABS(I243-I244)>15,3,0) -> 0 | AE244: 0
D245: DWI-2 (WMI + PSI) = | F245: =(1.715*V246)+31.4 -> 93.14 | U245: =IF(W20=3,Y13) -> 33 | AC245: =IF(ABS(I245-I246)>17.5,3,0) -> 0 | AE245: 0
U246: =IF(AB42<2,"",AA13) -> 20 | V246: =U246+U247 -> 36 | AC246: =IF(ABS(I245-I246)>17.5,3,0) -> 0 | AE246: 0
B247: Conceptually, the Dumont-Willis DWI-1 Index parallels the General Ability Index (GIA) developed by Prifitera, Weiss, and Saklofske and by Tulsky, Saklofske, Wilkins, & Weiss for the sum of scaled scores for the VCI and POI subtests of the WISC-III and WAIS-III. Unlike the DWI tables, the GIA tables are based directly on the WISC-III and WAIS-III normative data. | U247: =IF(AE42<2,"",AC13) -> 16
B249: Similarly, the Dumont-Willis DWI-2 Index is based on the sum of scaled scores for the Digit Span and Letter-Number Sequencing (WMI) and Coding and Symbol Search (PSI) subtests. This score is very similar to Alan Kaufman's "third factor"and "SCAD" scores. It should be computed and considered only when the four WMI and PSI subtest scores are close to one another and substantially separate from the VCI and PRI subtests. In those cases, the DWI-1 and DWI-2 scores may be an efficient alternative means of summarizing the 10 WISC-IV core subtests, but they must never be confused with normative WISC-IV factor and IQ scores.
D253: Oral / Verbal | H253: Pictures / Puzzles / Paper
D254: =V257 -> 9.9 | I254: =V258 -> 9.1
D255: Similarities | F255: =F116 -> 11 | I255: Block Design | N255: =F122 -> 13 | P255: Higher Level Thinking DWI-1 | T255: =SUM(F255:F259)+SUM(N255:N259) -> 102 | U255: =COUNT(F255:F259)+COUNT(N255:N259) -> 10 | V255: =T255/U255 -> 10.2
D256: Vocabulary | F256: =F117 -> 11 | I256: Picture Concepts | N256: =F123 -> 10 | T256: =SUM(F263:F267)+SUM(N263:N267) -> 88 | U256: =COUNT(F263:F267)+COUNT(N263:N267) -> 10 | V256: =T256/U256 -> 8.8
D257: Comprehension | F257: =F118 -> 11 | I257: Matrix Reasoning | N257: =F124 -> 10 | T257: =SUM(F255:F259)+SUM(F263:F267) -> 99 | U257: =COUNT(F255:F259)+COUNT(F263:F267) -> 10 | V257: =T257/U257 -> 9.9
D258: Information | F258: =F119 -> 10 | I258: Picture Completion | N258: =F125 -> 10 | P258: =V255 -> 10.2 | T258: =SUM(N255:N259)+SUM(N263:N267) -> 91 | U258: =COUNT(N255:N259)+COUNT(N263:N267) -> 10 | V258: =T258/U258 -> 9.1
D259: Word Reasoning | F259: =F120 -> 10 | I259: Block Design No Time Bonus | N259: =IF(F30="","",F30) -> 6
D263: Digit Span | F263: =F127 -> 10 | I263: Coding | N263: =F131 -> 6 | P263: Processing DWI-2
D264: Letter-Number Sequence | F264: =F128 -> 10 | I264: Symbol Search | N264: =F132 -> 10
D265: Arithmetic | F265: =F129 -> 10 | I265: Cancellation | N265: =F133 -> 10
D266: DS Forward | F266: =IF(F31="","",F31) -> 12 | I266: CA Random | N266: =IF(F33="","",F33) -> 7 | P266: =V256 -> 8.8
D267: DS Backward | F267: =IF(F32="","",F32) -> 4 | I267: CA Structured | N267: =IF(F34="","",F34) -> 9
B273: Block Design | C273: =F12 -> 13
B274: Similarities | C274: 11
B275: Digit Span | C275: 10
B276: Picture Concepts | C276: 10
... 87 more rows

Sheet Shares Abilities
A2: The following uses separate Verbal and Perceptual values unless you specify the Full Scale by typing "F" here:
C4: S | D4: V | E4: C | F4: I | G4: WR | H4: BD | I4: PCn | J4: MR | K4: PCmp | L4: Ds | M4: Ln | N4: A | O4: Cd | P4: SS | Q4: Can
B5: Deviation from mean: | C5: =IF(O2="F",'WISC IV'!P116,'WISC IV'!K116) -> 0.4 | D5: =IF(O2="F",'WISC IV'!P117,'WISC IV'!K117) -> 0.4 | E5: =IF(O2="F",'WISC IV'!P118,'WISC IV'!K118) -> 0.4 | F5: =IF(O2="F",'WISC IV'!P119,'WISC IV'!K119) -> -0.6 | G5: =IF(P2="F",'WISC IV'!P120,'WISC IV'!K120) -> -0.6 | H5: =IF(O2="F",'WISC IV'!P122,'WISC IV'!K122) -> 2.25 | I5: =IF(O2="F",'WISC IV'!P123,'WISC IV'!K123) -> -0.75 | J5: =IF(O2="F",'WISC IV'!P124,'WISC IV'!K124) -> -0.75 | K5: =IF(O2="F",'WISC IV'!P125,'WISC IV'!K125) -> -0.75 | L5: ='WISC IV'!P127 -> -0.1333333333 | M5: ='WISC IV'!P128 -> -0.1333333333 | N5: ='WISC IV'!P129 -> -0.1333333333 | O5: ='WISC IV'!P131 -> -4.133333333 | P5: ='WISC IV'!P132 -> -0.1333333333 | Q5: ='WISC IV'!P133 -> -0.1333333333
B6: Strength or Weakness: | C6: =IF(O2="F",'WISC IV'!Q116,'WISC IV'!L116) ->  | D6: =IF(O2="F",'WISC IV'!Q117,'WISC IV'!L117) ->  | E6: =IF(O2="F",'WISC IV'!Q118,'WISC IV'!L118) ->  | F6: =IF(O2="F",'WISC IV'!Q119,'WISC IV'!L119) ->  | G6: =IF(P2="F",'WISC IV'!Q120,'WISC IV'!L120) ->  | H6: =IF(O2="F",'WISC IV'!Q122,'WISC IV'!L122) -> s | I6: =IF(O2="F",'WISC IV'!Q123,'WISC IV'!L123) ->  | J6: =IF(O2="F",'WISC IV'!Q124,'WISC IV'!L124) ->  | K6: =IF(O2="F",'WISC IV'!Q125,'WISC IV'!L125) ->  | L6: ='WISC IV'!Q127 ->  | M6: ='WISC IV'!Q128 ->  | N6: ='WISC IV'!Q129 ->  | O6: ='WISC IV'!Q131 -> w | P6: ='WISC IV'!Q132 ->  | Q6: ='WISC IV'!Q133 -> 
B7: Positive or Negative: | C7: =IF(C5="","",IF(SIGN(C5)=1,"+",IF(SIGN(C5)=-1,"-",""))) -> + | D7: + | E7: + | F7: - | G7: - | H7: + | I7: - | J7: - | K7: - | L7: - | M7: - | N7: - | O7: - | P7: - | Q7: -
A8: INPUT
A9: Attention-Concentration | K9: =IF(K6="",K7,K6) -> - | L9: - | M9: - | N9: - | O9: w | P9: - | Q9: -
A10: Auditory-Vocal Channel | C10: =IF(C6="",C7,C6) -> + | D10: =IF(D6="",D7,D6) -> + | E10: =IF(E6="",E7,E6) -> + | F10: =IF(F6="",F7,F6) -> - | G10: =IF(G6="",G7,G6) -> - | L10: =L9 -> - | M10: =M9 -> - | N10: =N9 -> -
A11: Complex Verbal Directions | H11: =IF(H6="",H7,H6) -> s | J11: =IF(J6="",J7,J6) -> - | O11: =O9 -> w | P11: =P9 -> - | Q11: =Q9 -> -
A12: Essential from Non Essential | C12: =C10 -> + | J12: =J11 -> - | K12: =K9 -> - | P12: =P11 -> - | Q12: =Q11 -> -
A13: Encoding Information for Processing | G13: =G10 -> - | L13: =L10 -> - | M13: =M10 -> - | N13: =N10 -> - | O13: =O11 -> w | P13: =P12 -> - | Q13: =Q11 -> -
A14: Understanding Long Questions | E14: =E10 -> + | F14: =IF(F6="",F7,F6) -> - | G14: =G13 -> - | N14: =N13 -> -
A15: Understanding Words | C15: =C12 -> + | D15: =IF(D6="",D7,D6) -> + | G15: =G14 -> - | L15: =L13 -> - | M15: =M13 -> -
A16: Visual Motor Channel | H16: =H11 -> s | I16: =IF(I6="",I7,I6) -> - | J16: =J12 -> - | K16: =K12 -> - | O16: =O13 -> w | P16: =P13 -> - | Q16: =Q13 -> -
A17: Visual Perception-Abstr. Stim. | H17: =H16 -> s | J17: =J16 -> - | O17: =O16 -> w | P17: =P16 -> - | Q17: =Q16 -> -
A18: Visual Perception-Cmpl. Mean. Stim. | I18: =I16 -> - | K18: =K16 -> -
A19: Visual Perception-Mean. Stim. | I19: =I18 -> - | K19: =K18 -> - | Q19: =Q17 -> -
A20: INTEGRATION/STORAGE
A21: Achievement | C21: =C15 -> + | D21: =D15 -> + | E21: =E14 -> + | F21: =F14 -> - | G21: =G15 -> - | N21: =N14 -> -
A22: Acquired Knowledge | D22: =D21 -> + | F22: =F21 -> - | G22: =G21 -> - | N22: =N21 -> -
A23: Concept Formation | C23: =C21 -> + | D23: =D22 -> + | G23: =G22 -> - | H23: =H17 -> s
A24: Crystallized Intelligence | C24: =C23 -> + | D24: =D23 -> + | E24: =E21 -> + | F24: =F22 -> - | G24: =G23 -> - | I24: =I19 -> -
A25: Culture Loaded Knowledge | E25: =E24 -> + | F25: =F24 -> -
A26: Evaluation | E26: =E25 -> + | G26: =G24 -> - | H26: =H23 -> s | I26: =I24 -> - | J26: =J17 -> - | K26: =K19 -> - | O26: =O17 -> w | P26: =P17 -> - | Q26: =Q19 -> -
A27: Facility with Numbers | L27: =L15 -> - | M27: =M15 -> - | N27: =N22 -> - | O27: =O26 -> w
A28: Figural Cognition | H28: =H26 -> s | J28: =J26 -> - | K28: =K26 -> - | Q28: =Q26 -> -
A29: Figural Evaluation | H29: =H28 -> s | J29: =J28 -> - | K29: =K28 -> - | P29: =P26 -> - | Q29: =Q28 -> -
A30: Fluid Intelligence | C30: =C24 -> + | G30: =G26 -> - | H30: =H29 -> s | I30: =I26 -> - | J30: =J29 -> - | N30: =N27 -> -
A31: Fund of Information | D31: =D24 -> + | F31: =F25 -> -
A32: Long-term Memory | D32: =D31 -> + | F32: =F31 -> - | N32: =N30 -> -
A33: Memory | F33: =F32 -> - | L33: =L15 -> - | M33: =M27 -> - | N33: =N32 -> -
A34: Nonverbal Reasoning | I34: =I30 -> - | J34: =J30 -> -
A35: Planning Ability | P35: =P29 -> - | Q35: =Q29 -> -
A36: Reasoning | C36: =C30 -> + | D36: =D32 -> + | I36: =I34 -> - | J36: =J34 -> - | N36: =N33 -> -
A37: Semantic Content | C37: =C36 -> + | D37: =D36 -> + | E37: =E26 -> + | F37: =F33 -> - | G37: =G30 -> - | I37: =I36 -> - | N37: =N36 -> -
A38: Sequencing | L38: =L33 -> - | M38: =M33 -> - | N38: =N37 -> - | O38: =O27 -> w
A39: Verbal Conceptualization | C39: =C37 -> + | D39: =D37 -> + | E39: =E37 -> + | G39: =G37 -> -
A40: Verbal Reasoning | C40: =C37 -> + | E40: =E39 -> + | G40: =G39 -> -
A41: Visual Memory | K41: =K29 -> - | O41: =O38 -> w
A42: Visual Processing | H42: =H30 -> s | I42: =I37 -> - | J42: =J36 -> - | K42: =K41 -> - | Q42: =Q29 -> -
A43: Visual Sequencing | I43: =I37 -> - | O43: =O41 -> w | Q43: =Q42 -> -
A44: OUTPUT
A45: Much Verbal Expression | C45: =C40 -> + | D45: =D39 -> + | E45: =E40 -> +
A46: Simple Verbal expression | F46: =F37 -> - | G46: =G40 -> - | L46: =L38 -> - | M46: =M38 -> - | N46: =N38 -> -
A47: Visual Organization | I47: =I43 -> - | J47: =J42 -> - | K47: =K42 -> -
A48: Visual-Motor Coordination | H48: =H42 -> s | O48: =O43 -> w | P48: =P35 -> - | Q48: =Q43 -> -
A49: INFLUENCES
A50: Ability to Respond When Uncertain | J50: =J47 -> - | K50: =K47 -> -
A51: Alertness to environment | F51: =F46 -> - | K51: =K50 -> -
A52: Anxiety | L52: =L46 -> - | M52: =M46 -> - | N52: =N46 -> - | O52: =O48 -> w | P52: =P48 -> - | Q52: =Q48 -> -
A53: Attention span | L53: =L52 -> - | M53: =M46 -> - | N53: =N46 -> - | P53: =P52 -> - | Q53: =Q52 -> -
A54: Field in/dependence | H54: =H48 -> s | J54: =J50 -> - | K54: =K51 -> -
A55: Concentration | K55: =K54 -> - | M55: =M53 -> - | N55: =N53 -> - | O55: =O52 -> w | P55: =P53 -> - | Q55: =Q53 -> -
A56: Distractibility | L56: =L53 -> - | M56: =M55 -> - | N56: =N55 -> - | O56: =O55 -> w | P56: =P55 -> - | Q56: =Q55 -> -
A57: Motivation Level | O57: =O56 -> w | P57: =P56 -> - | Q57: =Q56 -> -
A58: Negativism | C58: =C45 -> + | E58: =E45 -> + | K58: =K55 -> - | L58: =L56 -> - | M58: =M56 -> -
A59: Working Under Time Pressures | H59: =H54 -> s | K59: =K58 -> - | N59: =N56 -> - | O59: =O57 -> w | P59: =P57 -> - | Q59: =Q57 -> -

Sheet Cult. & Linq.
E2: Degree of Linguistic Demands
E3: High | G3: Moderate | I3: Low
C4: Level Cultural Loading | D4: Hign | M4: =IF(J7="",0,J7) -> 10 | N4: =IF(J7="","",1) -> 1
E5: Similarities | F5: =IF('WISC IV'!F116="","",'WISC IV'!F116) -> 11 | K5: High Cultural | M5: =IF(F5="",0,F5) -> 11 | N5: =IF(F5="","",1) -> 1
E6: Vocabulary | F6: =IF('WISC IV'!F117="","",'WISC IV'!F117) -> 11 | K6: Average: | L6: =M10/N10 -> 10.5 | M6: =IF(F6="",0,F6) -> 11 | N6: =IF(F6="","",1) -> 1
E7: Comprehension | F7: =IF('WISC IV'!F118="","",'WISC IV'!F118) -> 11 | I7: Picture Completion | J7: =IF('WISC IV'!F125="","",'WISC IV'!F125) -> 10 | K7: Standard Score: | L7: =15*(L6-10)/3+100 -> 102.5 | M7: =IF(F7="",0,F7) -> 11 | N7: =IF(F7="","",1) -> 1
E8: Information | F8: =IF('WISC IV'!F119="","",'WISC IV'!F119) -> 10 | M8: =IF(F8="",0,F8) -> 10 | N8: =IF(F8="","",1) -> 1
E9: Word Reasoning | F9: =IF('WISC IV'!F120="","",'WISC IV'!F120) -> 10 | M9: =IF(F9="",0,F9) -> 10 | N9: =IF(F9="","",1) -> 1
M10: =SUM(M4:M9) -> 63 | N10: =SUM(N4:N9) -> 6
D11: Moderate
K12: Moderate Cultural | M12: =IF(H13="",0,H13) -> 10 | N12: =IF(H13="","",1) -> 1
G13: Picture Concepts | H13: =IF('WISC IV'!F123="","",'WISC IV'!F123) -> 10 | K13: Average: | L13: =M15/N15 -> 10 | M13: =IF(H14="",0,H14) -> 10 | N13: =IF(H14="","",1) -> 1
G14: Arithmetic | H14: =IF('WISC IV'!F129="","",'WISC IV'!F129) -> 10 | K14: Standard Score: | L14: =15*(L13-10)/3+100 -> 100
M15: =SUM(M12:M13) -> 20 | N15: =SUM(N12:N13) -> 2
D18: Low | G18: Block Design | H18: =IF('WISC IV'!F122="","",'WISC IV'!F122) -> 13 | K18: Low Cultural | M18: =IF(H18="",0,H18) -> 13 | N18: =IF(H18="","",1) -> 1
E19: Letter-Number Sequencing | F19: =IF('WISC IV'!F128="","",'WISC IV'!F128) -> 10 | G19: Digit Span | H19: =IF('WISC IV'!F127="","",'WISC IV'!F127) -> 10 | I19: Matrix Reasoning | J19: =IF('WISC IV'!F124="","",'WISC IV'!F124) -> 10 | K19: Average: | L19: =M26/N26 -> 9.857142857 | M19: =IF(H19="",0,H19) -> 10 | N19: =IF(H19="","",1) -> 1
G20: Coding | H20: =IF('WISC IV'!F131="","",'WISC IV'!F131) -> 6 | I20: Cancellation | J20: =IF('WISC IV'!F133="","",'WISC IV'!F133) -> 10 | K20: Standard Score: | L20: =15*(L19-10)/3+100 -> 99.28571429 | M20: =IF(H20="",0,H20) -> 6 | N20: =IF(H20="","",1) -> 1
G21: Symbol Search | H21: =IF('WISC IV'!F132="","",'WISC IV'!F132) -> 10 | M21: =IF(H21="",0,H21) -> 10 | N21: =IF(H21="","",1) -> 1
M22: =IF(F19="",0,F19) -> 10 | N22: =IF(F19="","",1) -> 1
E23: High Linguistic | G23: Moderate Linguistic | I23: Low Linguistic
E24: Average: | F24: =F36/G36 -> 10.5 | G24: Average: | H24: =H36/I36 -> 9.833333333 | I24: Average: | J24: =J36/K36 -> 10 | M24: =IF(J19="",0,J19) -> 10 | N24: =IF(J19="","",1) -> 1
E25: Standard Score: | F25: =15*(F24-10)/3+100 -> 102.5 | G25: Standard Score: | H25: =15*(H24-10)/3+100 -> 99.16666667 | I25: Standard Score: | J25: =15*(J24-10)/3+100 -> 100 | M25: =IF(J20="",0,J20) -> 10 | N25: =IF(J20="","",1) -> 1
M26: =SUM(M18:M25) -> 69 | N26: =SUM(N18:N25) -> 7
C27: Adapted from Kevin McGrew & Dawn Flanagan’s The Intelligence Test Desk Reference (ITDR): Gf-Gc Cross-Battery Assessment (Allyn & Bacon, 1998) Table 14-4 and from Dawn Flanagan, Kevin McGrew, and Samuel Ortiz's The Wechsler Intelligence Scales and Gf-Gc Theory: A Contemporary Approach to Interpretation (Allyn & Bacon, 2000 Table 8.2.
F30: =IF(F5="",0,F5) -> 11 | G30: =IF(F5="","",1) -> 1 | H30: =IF(H13="",0,H13) -> 10 | I30: =IF(H13="","",1) -> 1 | J30: =IF(F19="",0,F19) -> 10 | K30: =IF(F19="","",1) -> 1
F31: =IF(F6="",0,F6) -> 11 | G31: =IF(F6="","",1) -> 1 | H31: =IF(H14="",0,H14) -> 10 | I31: =IF(H14="","",1) -> 1
F32: =IF(F7="",0,F7) -> 11 | G32: =IF(F7="","",1) -> 1 | H32: =IF(H18="",0,H18) -> 13 | I32: =IF(H18="","",1) -> 1
F33: =IF(F8="",0,F8) -> 10 | G33: =IF(F8="","",1) -> 1 | H33: =IF(H19="",0,H19) -> 10 | I33: =IF(H19="","",1) -> 1
F34: =IF(F9="",0,F9) -> 10 | G34: =IF(F9="","",1) -> 1 | H34: =IF(H20="",0,H20) -> 6 | I34: =IF(H20="","",1) -> 1 | J34: =IF(J19="",0,J19) -> 10 | K34: =IF(J19="","",1) -> 1
F35: =IF(F19="",0,F19) -> 10 | G35: =IF(F19="","",1) -> 1 | H35: =IF(H21="",0,H21) -> 10 | I35: =IF(H21="","",1) -> 1 | J35: =IF(J20="",0,J20) -> 10 | K35: =IF(J20="","",1) -> 1
F36: =SUM(F30:F35) -> 63 | G36: 6 | H36: 59 | I36: 6 | J36: 30 | K36: 3
